[Event "*** SCC Grand Prix: Titled Tuesday Blitz"]
[Site "Chess.com"]
[Date "2020.09.29"]
[Round "2"]
[White "Teidi96"]
[Black "FloMaster111"]
[Result "1-0"]
[WhiteElo "2316"]
[BlackElo "2477"]
[TimeControl "180+1"]
[EndTime "10:18:42 PDT"]
[Termination "Teidi96 won by checkmate"]

1. e4 {[%clk 0:03:00.9]} 1... c6 {[%clk 0:02:59.5]} 2. d4 {[%clk 0:03:00.6]}
2... d5 {[%clk 0:03:00.4]} 3. e5 {[%clk 0:02:58.4]} 3... Bf5 {[%clk 0:02:59.9]}
4. h4 {[%clk 0:02:58.8]} 4... h5 {[%clk 0:02:58.9]} 5. Bd3 {[%clk 0:02:59.2]}
5... Bxd3 {[%clk 0:02:55.5]} 6. Qxd3 {[%clk 0:03:00.1]} 6... e6 {[%clk
0:02:55.5]} 7. Bg5 {[%clk 0:03:00.5]} 7... Qb6 {[%clk 0:02:31.9]} 8. Nd2 {[%clk
0:02:59.5]} 8... Ne7 {[%clk 0:02:28.7]} 9. c4 {[%clk 0:02:56.9]} 9... Nd7 {[%clk
0:02:20.4]} 10. Ne2 {[%clk 0:02:55.9]} 10... Nf5 {[%clk 0:02:19.7]} 11. O-O
{[%clk 0:02:46.5]} 11... Be7 {[%clk 0:02:10.4]} 12. Bxe7 {[%clk 0:02:41.2]}
12... Nxe7 {[%clk 0:01:59.7]} 13. c5 {[%clk 0:02:40.9]} 13... Qd8 {[%clk
0:01:56.7]} 14. b4 {[%clk 0:02:39.7]} 14... Nf5 {[%clk 0:01:54.2]} 15. g3 {[%clk
0:02:30.5]} 15... g5 {[%clk 0:01:53.8]} 16. hxg5 {[%clk 0:02:08.5]} 16... Qxg5
{[%clk 0:01:54.7]} 17. Nf3 {[%clk 0:02:08.8]} 17... Qg4 {[%clk 0:01:51.4]} 18.
Kg2 {[%clk 0:01:50.8]} 18... h4 {[%clk 0:01:48.5]} 19. Rh1 {[%clk 0:01:50.9]}
19... Ke7 {[%clk 0:01:41.5]} 20. Rh3 {[%clk 0:01:32.4]} 20... hxg3 {[%clk
0:01:22.2]} 21. Rxh8 {[%clk 0:01:25.1]} 21... gxf2+ {[%clk 0:01:17.2]} 22. Kxf2
{[%clk 0:01:26]} 22... Rxh8 {[%clk 0:01:16]} 23. Rg1 {[%clk 0:01:25.8]} 23...
Qh3 {[%clk 0:00:46.6]} 24. Qd2 {[%clk 0:01:16.6]} 24... Rh5 {[%clk 0:00:41.8]}
25. Nf4 {[%clk 0:01:09.5]} 25... Nxd4 {[%clk 0:00:07.3]} 26. Nxh3 {[%clk
0:01:01.1]} 26... Nxf3 {[%clk 0:00:06.6]} 27. Kxf3 {[%clk 0:00:53.2]} 27...
Rxh3+ {[%clk 0:00:06.3]} 28. Kg2 {[%clk 0:00:47.3]} 28... Rh5 {[%clk 0:00:06.3]}
29. Rh1 {[%clk 0:00:36]} 29... Rxe5 {[%clk 0:00:06.2]} 30. Rh8 {[%clk
0:00:36.3]} 30... Rf5 {[%clk 0:00:05.7]} 31. Qh6 {[%clk 0:00:34.3]} 31... Ne5
{[%clk 0:00:05.7]} 32. Qf8+ {[%clk 0:00:32.4]} 32... Kf6 {[%clk 0:00:06.2]} 33.
Rh6+ {[%clk 0:00:22.9]} 33... Kg5 {[%clk 0:00:06.2]} 34. Qg7+ {[%clk 0:00:20.3]}
34... Ng6 {[%clk 0:00:06.7]} 35. Rxg6+ {[%clk 0:00:18.4]} 35... fxg6 {[%clk
0:00:06.6]} 36. Qxb7 {[%clk 0:00:18.9]} 36... e5 {[%clk 0:00:06.7]} 37. Qxc6
{[%clk 0:00:18.7]} 37... d4 {[%clk 0:00:07.3]} 38. Qe4 {[%clk 0:00:18]} 38...
Kf6 {[%clk 0:00:06.9]} 39. c6 {[%clk 0:00:17.9]} 39... Rf4 {[%clk 0:00:07.4]}
40. Qd5 {[%clk 0:00:17.3]} 40... Rg4+ {[%clk 0:00:06.7]} 41. Kf2 {[%clk
0:00:16.4]} 41... Rf4+ {[%clk 0:00:06.8]} 42. Kg3 {[%clk 0:00:16.7]} 42... Rf1
{[%clk 0:00:04.2]} 43. c7 {[%clk 0:00:16]} 43... Rc1 {[%clk 0:00:04.5]} 44. Qd6+
{[%clk 0:00:15.3]} 44... Kf5 {[%clk 0:00:04.4]} 45. Qf8+ {[%clk 0:00:15.3]}
45... Ke4 {[%clk 0:00:04.5]} 46. c8=Q {[%clk 0:00:14.5]} 46... Rxc8 {[%clk
0:00:05.1]} 47. Qxc8 {[%clk 0:00:14]} 47... Ke3 {[%clk 0:00:06]} 48. Qe6 {[%clk
0:00:13]} 48... e4 {[%clk 0:00:06.9]} 49. Qxg6 {[%clk 0:00:12]} 49... d3 {[%clk
0:00:06.7]} 50. Qg5+ {[%clk 0:00:12.1]} 50... Ke2 {[%clk 0:00:06.9]} 51. Qh5+
{[%clk 0:00:09.7]} 51... Ke1 {[%clk 0:00:06.8]} 52. Qh1+ {[%clk 0:00:08.7]}
52... Kd2 {[%clk 0:00:06]} 53. Qxe4 {[%clk 0:00:08.8]} 53... Kc2 {[%clk
0:00:05.9]} 54. a4 {[%clk 0:00:08.4]} 54... Kc3 {[%clk 0:00:06.3]} 55. b5 {[%clk
0:00:08.2]} 55... d2 {[%clk 0:00:06.6]} 56. Qe3+ {[%clk 0:00:08]} 56... Kc2
{[%clk 0:00:06.8]} 57. Qe2 {[%clk 0:00:06.6]} 57... Kc1 {[%clk 0:00:06.7]} 58.
Qc4+ {[%clk 0:00:07.2]} 58... Kb2 {[%clk 0:00:05.8]} 59. Qd3 {[%clk 0:00:07.1]}
59... Kc1 {[%clk 0:00:06]} 60. Qc3+ {[%clk 0:00:07.1]} 60... Kd1 {[%clk
0:00:05.6]} 61. a5 {[%clk 0:00:06.4]} 61... Ke2 {[%clk 0:00:06.5]} 62. Qe5+
{[%clk 0:00:05.4]} 62... Kd1 {[%clk 0:00:06.7]} 63. b6 {[%clk 0:00:04.9]} 63...
Kc2 {[%clk 0:00:07.6]} 64. Qc5+ {[%clk 0:00:04.3]} 64... Kb2 {[%clk 0:00:07.6]}
65. Qd4+ {[%clk 0:00:04.7]} 65... Kc1 {[%clk 0:00:08.5]} 66. Qxd2+ {[%clk
0:00:04.8]} 66... Kxd2 {[%clk 0:00:08.4]} 67. bxa7 {[%clk 0:00:05.7]} 67... Kc3
{[%clk 0:00:09.3]} 68. a8=Q {[%clk 0:00:06.6]} 68... Kb4 {[%clk 0:00:10]} 69.
Qb7+ {[%clk 0:00:07.2]} 69... Kxa5 {[%clk 0:00:09.9]} 70. Qb8 {[%clk 0:00:07.3]}
70... Ka4 {[%clk 0:00:10.6]} 71. Kf3 {[%clk 0:00:08]} 71... Ka5 {[%clk
0:00:11.5]} 72. Ke3 {[%clk 0:00:08.9]} 72... Ka6 {[%clk 0:00:12.4]} 73. Kd3
{[%clk 0:00:09.8]} 73... Ka5 {[%clk 0:00:13.3]} 74. Kc4 {[%clk 0:00:10.7]} 74...
Ka6 {[%clk 0:00:14.2]} 75. Kc5 {[%clk 0:00:10.8]} 75... Ka5 {[%clk 0:00:15.1]}
76. Qa8# {[%clk 0:00:11]} 1-0

[Event "*** SCC Grand Prix: Titled Tuesday Blitz"]
[Site "Chess.com"]
[Date "2020.09.29"]
[Round "2"]
[White "CookiesAndIceCream"]
[Black "winniethepooh04"]
[Result "1/2-1/2"]
[WhiteElo "2402"]
[BlackElo "2203"]
[TimeControl "180+1"]
[EndTime "10:18:42 PDT"]
[Termination "Game drawn by repetition"]

1. e4 {[%clk 0:02:14.7]} 1... e6 {[%clk 0:02:59.2]} 2. d4 {[%clk 0:02:09.4]}
2... d5 {[%clk 0:02:58.4]} 3. Nd2 {[%clk 0:02:01.9]} 3... c5 {[%clk 0:02:57.4]}
4. Ngf3 {[%clk 0:02:01.4]} 4... cxd4 {[%clk 0:02:56.7]} 5. exd5 {[%clk
0:01:59.3]} 5... Qxd5 {[%clk 0:02:55.9]} 6. Bc4 {[%clk 0:01:59.4]} 6... Qd6
{[%clk 0:02:56.4]} 7. O-O {[%clk 0:01:58.8]} 7... Nf6 {[%clk 0:02:56.9]} 8. Nb3
{[%clk 0:01:56.7]} 8... Nc6 {[%clk 0:02:57.4]} 9. Nbxd4 {[%clk 0:01:54.6]} 9...
Nxd4 {[%clk 0:02:58.3]} 10. Nxd4 {[%clk 0:01:55.2]} 10... a6 {[%clk 0:02:58.3]}
11. Re1 {[%clk 0:01:55]} 11... Qc7 {[%clk 0:02:56.8]} 12. Bb3 {[%clk 0:01:54.5]}
12... Be7 {[%clk 0:02:56.3]} 13. Qf3 {[%clk 0:01:51.6]} 13... O-O {[%clk
0:02:55.8]} 14. Bf4 {[%clk 0:01:49.1]} 14... Bd6 {[%clk 0:02:55.6]} 15. Bxd6
{[%clk 0:01:48.1]} 15... Qxd6 {[%clk 0:02:56.5]} 16. Rad1 {[%clk 0:01:42.4]}
16... Qc7 {[%clk 0:02:56.7]} 17. c3 {[%clk 0:01:35]} 17... Re8 {[%clk
0:02:56.3]} 18. h3 {[%clk 0:01:18.6]} 18... Bd7 {[%clk 0:02:56.3]} 19. Qe3
{[%clk 0:01:13]} 19... Rad8 {[%clk 0:02:55.2]} 20. Nf3 {[%clk 0:01:10.5]} 20...
Bc8 {[%clk 0:02:54.9]} 21. Ne5 {[%clk 0:01:09.9]} 21... Rxd1 {[%clk 0:02:55.4]}
22. Rxd1 {[%clk 0:01:10.4]} 22... Rd8 {[%clk 0:02:55.9]} 23. Rxd8+ {[%clk
0:01:09.9]} 23... Qxd8 {[%clk 0:02:56.8]} 24. g4 {[%clk 0:01:09]} 24... h6
{[%clk 0:02:51.2]} 25. Kg2 {[%clk 0:01:02.1]} 25... Nd5 {[%clk 0:02:39.2]} 26.
Qd4 {[%clk 0:00:59.7]} 26... Qf6 {[%clk 0:01:52.6]} 27. Bxd5 {[%clk 0:00:57.3]}
27... exd5 {[%clk 0:01:53.5]} 28. Qxd5 {[%clk 0:00:57.5]} 28... Be6 {[%clk
0:01:43.7]} 29. Qd4 {[%clk 0:00:49.3]} 29... Bxa2 {[%clk 0:01:39.5]} 30. c4
{[%clk 0:00:47.9]} 30... Bxc4 {[%clk 0:01:33.2]} 31. Qxc4 {[%clk 0:00:42.8]}
31... Qxe5 {[%clk 0:01:32.8]} 32. Qc8+ {[%clk 0:00:43.3]} 32... Kh7 {[%clk
0:01:31.6]} 33. Qxb7 {[%clk 0:00:43.7]} 33... Qf6 {[%clk 0:01:28.4]} 34. b4
{[%clk 0:00:40.1]} 34... g6 {[%clk 0:01:26.5]} 35. Qe4 {[%clk 0:00:37.5]} 35...
Kg7 {[%clk 0:01:23.7]} 36. Kg3 {[%clk 0:00:30.5]} 36... Qd6+ {[%clk 0:01:20.9]}
37. Kf3 {[%clk 0:00:29.6]} 37... Qd1+ {[%clk 0:01:19.3]} 38. Ke3 {[%clk
0:00:26.1]} 38... Qf1 {[%clk 0:01:11.6]} 39. Qd4+ {[%clk 0:00:22.4]} 39... Kh7
{[%clk 0:01:11.1]} 40. h4 {[%clk 0:00:16.9]} 40... Qh3+ {[%clk 0:01:10.2]} 41.
f3 {[%clk 0:00:17.2]} 41... Qxh4 {[%clk 0:01:09.9]} 42. Qb6 {[%clk 0:00:17.4]}
42... Qg5+ {[%clk 0:01:07]} 43. Kf2 {[%clk 0:00:17.3]} 43... Qb5 {[%clk
0:01:06.7]} 44. Qf6 {[%clk 0:00:16.6]} 44... Kg8 {[%clk 0:01:02.2]} 45. Qd8+
{[%clk 0:00:16.3]} 45... Kg7 {[%clk 0:01:02.4]} 46. Qd4+ {[%clk 0:00:16.7]}
46... Kh7 {[%clk 0:01:02.2]} 47. Qf6 {[%clk 0:00:16.8]} 47... Qb7 {[%clk
0:01:00.2]} 48. Kg3 {[%clk 0:00:15.9]} 48... Kg8 {[%clk 0:00:56.8]} 49. Qd8+
{[%clk 0:00:14.8]} 49... Kg7 {[%clk 0:00:57]} 50. Qd4+ {[%clk 0:00:14.9]} 50...
Kh7 {[%clk 0:00:55]} 51. Qf6 {[%clk 0:00:14.9]} 51... Qc7+ {[%clk 0:00:55.3]}
52. Kh3 {[%clk 0:00:14.9]} 52... Qb7 {[%clk 0:00:47.8]} 53. Kg2 {[%clk
0:00:13.8]} 53... Kg8 {[%clk 0:00:42.7]} 54. Qd8+ {[%clk 0:00:13.1]} 54... Kg7
{[%clk 0:00:43.3]} 55. Qd4+ {[%clk 0:00:13.2]} 55... f6 {[%clk 0:00:43.9]} 56.
Qd6 {[%clk 0:00:12.2]} 56... Qf7 {[%clk 0:00:41.3]} 57. Kg3 {[%clk 0:00:12]}
57... h5 {[%clk 0:00:41.3]} 58. Qxa6 {[%clk 0:00:11.1]} 58... hxg4 {[%clk
0:00:40.6]} 59. fxg4 {[%clk 0:00:11.6]} 59... Qb3+ {[%clk 0:00:40.4]} 60. Kh4
{[%clk 0:00:11.2]} 60... Qxb4 {[%clk 0:00:40.7]} 61. Qa7+ {[%clk 0:00:10.5]}
61... Kh6 {[%clk 0:00:40.9]} 62. Qe3+ {[%clk 0:00:09]} 62... g5+ {[%clk
0:00:39.9]} 63. Kg3 {[%clk 0:00:09.4]} 63... Qd6+ {[%clk 0:00:32.7]} 64. Kh3
{[%clk 0:00:09.1]} 64... Qe5 {[%clk 0:00:31]} 65. Qf3 {[%clk 0:00:09]} 65... Qf4
{[%clk 0:00:30]} 66. Qa8 {[%clk 0:00:08.8]} 66... Qe3+ {[%clk 0:00:26.8]} 67.
Kg2 {[%clk 0:00:08.8]} 67... Qe2+ {[%clk 0:00:26.8]} 68. Kg3 {[%clk 0:00:08.8]}
68... Qe1+ {[%clk 0:00:26.4]} 69. Kh3 {[%clk 0:00:08.8]} 69... Qe7 {[%clk
0:00:24.7]} 70. Qh8+ {[%clk 0:00:07.5]} 70... Kg6 {[%clk 0:00:24.3]} 71. Qg8+
{[%clk 0:00:07.4]} 71... Qg7 {[%clk 0:00:24.2]} 72. Qe8+ {[%clk 0:00:07.8]}
72... Qf7 {[%clk 0:00:24.4]} 73. Qe4+ {[%clk 0:00:07.9]} 73... Kg7 {[%clk
0:00:24.6]} 74. Qf5 {[%clk 0:00:08.7]} 74... Qb3+ {[%clk 0:00:24.6]} 75. Kg2
{[%clk 0:00:08.5]} 75... Qb2+ {[%clk 0:00:25]} 76. Kg3 {[%clk 0:00:08.3]} 76...
Qb3+ {[%clk 0:00:25.4]} 77. Kg2 {[%clk 0:00:08.2]} 77... Qb2+ {[%clk 0:00:25.8]}
78. Kh3 {[%clk 0:00:08.7]} 78... Qb3+ {[%clk 0:00:26.1]} 79. Kg2 {[%clk
0:00:08.9]} 1/2-1/2

[Event "*** SCC Grand Prix: Titled Tuesday Blitz"]
[Site "Chess.com"]
[Date "2020.09.29"]
[Round "2"]
[White "nocnypako"]
[Black "penguingm1"]
[Result "1/2-1/2"]
[WhiteElo "2575"]
[BlackElo "2886"]
[TimeControl "180+1"]
[EndTime "10:18:46 PDT"]
[Termination "Game drawn by repetition"]

1. d4 {[%clk 0:03:00.9]} 1... d5 {[%clk 0:02:17.4]} 2. c4 {[%clk 0:02:59.4]}
2... e6 {[%clk 0:02:17.6]} 3. Nc3 {[%clk 0:02:59.9]} 3... Be7 {[%clk 0:02:13]}
4. cxd5 {[%clk 0:03:00]} 4... exd5 {[%clk 0:02:13.9]} 5. Nf3 {[%clk 0:03:00.4]}
5... c6 {[%clk 0:02:14.4]} 6. Bf4 {[%clk 0:03:00.7]} 6... Bf5 {[%clk 0:02:15.1]}
7. e3 {[%clk 0:03:01.2]} 7... Nf6 {[%clk 0:02:15.8]} 8. Bd3 {[%clk 0:03:01.8]}
8... Bxd3 {[%clk 0:02:16.4]} 9. Qxd3 {[%clk 0:03:02.4]} 9... Nbd7 {[%clk
0:02:16.5]} 10. O-O {[%clk 0:03:03]} 10... Nh5 {[%clk 0:02:16.9]} 11. Bg3 {[%clk
0:03:02.5]} 11... O-O {[%clk 0:02:17]} 12. Rab1 {[%clk 0:03:02.7]} 12... a5
{[%clk 0:02:17.4]} 13. a3 {[%clk 0:03:02.3]} 13... Re8 {[%clk 0:02:17.9]} 14.
Rfc1 {[%clk 0:02:57.7]} 14... Nxg3 {[%clk 0:02:15.1]} 15. hxg3 {[%clk
0:02:58.6]} 15... Bd6 {[%clk 0:02:15.2]} 16. b4 {[%clk 0:02:55.1]} 16... axb4
{[%clk 0:02:03.4]} 17. axb4 {[%clk 0:02:56]} 17... Nb6 {[%clk 0:02:04.2]} 18. b5
{[%clk 0:02:54.3]} 18... Nc4 {[%clk 0:02:04]} 19. bxc6 {[%clk 0:02:53.4]} 19...
bxc6 {[%clk 0:02:04.9]} 20. Nd2 {[%clk 0:02:52.2]} 20... Na3 {[%clk 0:01:23.6]}
21. Rb7 {[%clk 0:02:39.6]} 21... Qg5 {[%clk 0:01:17.4]} 22. e4 {[%clk
0:02:16.2]} 22... Qg6 {[%clk 0:00:41.2]} 23. Qf3 {[%clk 0:02:11.3]} 23... dxe4
{[%clk 0:00:19.1]} 24. Ncxe4 {[%clk 0:02:12.2]} 24... Nb5 {[%clk 0:00:14.9]} 25.
Nxd6 {[%clk 0:01:36.9]} 25... Nxd4 {[%clk 0:00:07.8]} 26. Qd1 {[%clk 0:00:08.2]}
26... Ne2+ {[%clk 0:00:04]} 27. Kf1 {[%clk 0:00:07.8]} 27... Qxd6 {[%clk
0:00:04.1]} 28. Nf3 {[%clk 0:00:06.7]} 28... Qe6 {[%clk 0:00:03.5]} 29. Rcb1
{[%clk 0:00:05]} 29... Rad8 {[%clk 0:00:03.7]} 30. Qb3 {[%clk 0:00:03]} 30...
Qxb3 {[%clk 0:00:04]} 31. R7xb3 {[%clk 0:00:02.1]} 31... Nd4 {[%clk 0:00:01.4]}
32. Rb7 {[%clk 0:00:02]} 32... Nxf3 {[%clk 0:00:01.7]} 33. gxf3 {[%clk
0:00:02.4]} 33... Re6 {[%clk 0:00:02.5]} 34. Rc1 {[%clk 0:00:02.2]} 34... g6
{[%clk 0:00:02.3]} 35. Rc7 {[%clk 0:00:02.3]} 35... Rdd6 {[%clk 0:00:03]} 36. f4
{[%clk 0:00:02.4]} 36... Kg7 {[%clk 0:00:03.2]} 37. Rc8 {[%clk 0:00:03]} 37...
Rf6 {[%clk 0:00:03.3]} 38. Rc7 {[%clk 0:00:03.7]} 38... h6 {[%clk 0:00:03.7]}
39. Kg2 {[%clk 0:00:04.3]} 39... g5 {[%clk 0:00:04.4]} 40. fxg5 {[%clk
0:00:04.7]} 40... hxg5 {[%clk 0:00:05.3]} 41. Rc2 {[%clk 0:00:05.2]} 41... Kg6
{[%clk 0:00:05.8]} 42. Kf1 {[%clk 0:00:05.5]} 42... g4 {[%clk 0:00:06.1]} 43.
Kg2 {[%clk 0:00:06]} 43... Kg5 {[%clk 0:00:06.6]} 44. Kf1 {[%clk 0:00:06.3]}
44... Kf5 {[%clk 0:00:07.2]} 45. Kg2 {[%clk 0:00:06.6]} 45... Ke5 {[%clk
0:00:07.9]} 46. Rc4 {[%clk 0:00:06.9]} 46... Rd2 {[%clk 0:00:07.6]} 47. Rxg4
{[%clk 0:00:05.7]} 47... Rfxf2+ {[%clk 0:00:08]} 48. Kg1 {[%clk 0:00:06.1]}
48... Rg2+ {[%clk 0:00:08.5]} 49. Kf1 {[%clk 0:00:06.4]} 49... Rh2 {[%clk
0:00:08.8]} 50. Kg1 {[%clk 0:00:06.8]} 50... Rdg2+ {[%clk 0:00:09.2]} 51. Kf1
{[%clk 0:00:07]} 51... Ra2 {[%clk 0:00:10]} 52. Kg1 {[%clk 0:00:07.3]} 52...
Rhg2+ {[%clk 0:00:08.7]} 53. Kf1 {[%clk 0:00:04.2]} 53... Rgc2 {[%clk
0:00:08.6]} 54. Re7+ {[%clk 0:00:03.8]} 54... Kd6 {[%clk 0:00:08.2]} 55. Re1
{[%clk 0:00:03.7]} 55... Rh2 {[%clk 0:00:08.9]} 56. Kg1 {[%clk 0:00:03.5]} 56...
Rag2+ {[%clk 0:00:09.6]} 57. Kf1 {[%clk 0:00:03.8]} 57... Rd2 {[%clk 0:00:09.7]}
58. Kg1 {[%clk 0:00:03.8]} 58... c5 {[%clk 0:00:10.4]} 59. Rf4 {[%clk
0:00:03.5]} 59... Rdg2+ {[%clk 0:00:10.7]} 60. Kf1 {[%clk 0:00:03.2]} 60... Rxg3
{[%clk 0:00:10]} 61. Rf6+ {[%clk 0:00:02.8]} 61... Kd5 {[%clk 0:00:10.3]} 62.
Rf5+ {[%clk 0:00:03.1]} 62... Kd4 {[%clk 0:00:10.7]} 63. Rxf7 {[%clk 0:00:03.4]}
63... c4 {[%clk 0:00:11.4]} 64. Rd7+ {[%clk 0:00:03.2]} 64... Kc3 {[%clk
0:00:11.9]} 65. Rc1+ {[%clk 0:00:03.5]} 65... Kb4 {[%clk 0:00:08.7]} 66. Rb7+
{[%clk 0:00:03.7]} 66... Kc5 {[%clk 0:00:08.7]} 67. Rc7+ {[%clk 0:00:04.1]}
67... Kd5 {[%clk 0:00:09.2]} 68. R7xc4 {[%clk 0:00:04.8]} 68... Rgg2 {[%clk
0:00:07.9]} 69. Rc5+ {[%clk 0:00:04.4]} 69... Kd4 {[%clk 0:00:08.6]} 70. R5c4+
{[%clk 0:00:04.7]} 70... Kd3 {[%clk 0:00:09.1]} 71. R4c3+ {[%clk 0:00:05]} 71...
Ke4 {[%clk 0:00:09.7]} 72. Rc4+ {[%clk 0:00:05.3]} 72... Kf3 {[%clk 0:00:10.4]}
73. R4c3+ {[%clk 0:00:05.7]} 73... Kg4 {[%clk 0:00:10.9]} 74. Rc4+ {[%clk
0:00:06]} 74... Kh5 {[%clk 0:00:11.4]} 75. Rc5+ {[%clk 0:00:06.2]} 75... Rg5
{[%clk 0:00:12.2]} 76. Rxg5+ {[%clk 0:00:06.2]} 76... Kxg5 {[%clk 0:00:13.1]}
77. Kg1 {[%clk 0:00:06.6]} 77... Ra2 {[%clk 0:00:13.5]} 78. Rf1 {[%clk
0:00:06.7]} 78... Kg4 {[%clk 0:00:14.1]} 79. Rf8 {[%clk 0:00:06.7]} 79... Kg3
{[%clk 0:00:14.8]} 80. Rg8+ {[%clk 0:00:06.6]} 80... Kf3 {[%clk 0:00:15.6]} 81.
Rf8+ {[%clk 0:00:06.9]} 81... Ke3 {[%clk 0:00:16.4]} 82. Re8+ {[%clk 0:00:07]}
82... Kf3 {[%clk 0:00:17.1]} 83. Rf8+ {[%clk 0:00:07.4]} 83... Kg3 {[%clk
0:00:17.8]} 84. Rg8+ {[%clk 0:00:07.7]} 84... Kf3 {[%clk 0:00:18.5]} 85. Rf8+
{[%clk 0:00:08]} 1/2-1/2

[Event "*** SCC Grand Prix: Titled Tuesday Blitz"]
[Site "Chess.com"]
[Date "2020.09.29"]
[Round "2"]
[White "Nikithebest"]
[Black "pirulillo"]
[Result "0-1"]
[WhiteElo "2407"]
[BlackElo "2222"]
[TimeControl "180+1"]
[EndTime "10:18:47 PDT"]
[Termination "pirulillo won on time"]

1. e4 {[%clk 0:03:00.9]} 1... c5 {[%clk 0:02:53.6]} 2. Nf3 {[%clk 0:03:00.2]}
2... e6 {[%clk 0:02:50.2]} 3. d3 {[%clk 0:03:00]} 3... Nc6 {[%clk 0:02:48.3]} 4.
g3 {[%clk 0:03:00.2]} 4... g6 {[%clk 0:02:48.5]} 5. d4 {[%clk 0:03:00.3]} 5...
Bg7 {[%clk 0:02:49.4]} 6. d5 {[%clk 0:02:59.8]} 6... exd5 {[%clk 0:02:45.1]} 7.
exd5 {[%clk 0:02:59.7]} 7... Nd4 {[%clk 0:02:45.4]} 8. Nxd4 {[%clk 0:02:41.8]}
8... Bxd4 {[%clk 0:02:44.1]} 9. c3 {[%clk 0:02:28.6]} 9... Bg7 {[%clk
0:02:41.5]} 10. Bg2 {[%clk 0:02:28.6]} 10... Nf6 {[%clk 0:02:38.5]} 11. O-O
{[%clk 0:02:28.5]} 11... O-O {[%clk 0:02:36.6]} 12. d6 {[%clk 0:02:21.9]} 12...
Rb8 {[%clk 0:02:27.6]} 13. Na3 {[%clk 0:02:08.5]} 13... b5 {[%clk 0:02:23.6]}
14. Be3 {[%clk 0:02:07.8]} 14... Qb6 {[%clk 0:02:13.5]} 15. b4 {[%clk
0:02:06.1]} 15... Qa6 {[%clk 0:02:13.3]} 16. Nc2 {[%clk 0:02:01.9]} 16... cxb4
{[%clk 0:01:52.2]} 17. Nxb4 {[%clk 0:01:50.5]} 17... Qa5 {[%clk 0:01:45.6]} 18.
a4 {[%clk 0:01:47.9]} 18... Bb7 {[%clk 0:01:40.1]} 19. axb5 {[%clk 0:01:46.5]}
19... Qxb5 {[%clk 0:01:39.7]} 20. Rxa7 {[%clk 0:01:27.5]} 20... Bxg2 {[%clk
0:01:35.1]} 21. Kxg2 {[%clk 0:01:28.4]} 21... Ne4 {[%clk 0:01:10.7]} 22. Nd5
{[%clk 0:01:19.9]} 22... Nxc3 {[%clk 0:01:01.4]} 23. Ne7+ {[%clk 0:01:03.7]}
23... Kh8 {[%clk 0:00:59.8]} 24. Qd2 {[%clk 0:01:04.2]} 24... Rb7 {[%clk
0:00:35.6]} 25. Raa1 {[%clk 0:00:44]} 25... Ne4 {[%clk 0:00:34.1]} 26. Qd1
{[%clk 0:00:39.4]} 26... Qc4 {[%clk 0:00:23.4]} 27. Rc1 {[%clk 0:00:36]} 27...
Qe6 {[%clk 0:00:22.9]} 28. Nc8 {[%clk 0:00:21.1]} 28... Rb8 {[%clk 0:00:20]} 29.
Ne7 {[%clk 0:00:16.9]} 29... Nxd6 {[%clk 0:00:18.8]} 30. Nd5 {[%clk 0:00:17.5]}
30... Nf5 {[%clk 0:00:18.2]} 31. Bf4 {[%clk 0:00:16.1]} 31... Rb5 {[%clk
0:00:17.1]} 32. Ne3 {[%clk 0:00:15.1]} 32... Qe4+ {[%clk 0:00:16.3]} 33. Kg1
{[%clk 0:00:14.9]} 33... Nxe3 {[%clk 0:00:16.6]} 34. Bxe3 {[%clk 0:00:15.8]}
34... d5 {[%clk 0:00:16.5]} 35. Rc7 {[%clk 0:00:14.5]} 35... d4 {[%clk
0:00:15.4]} 36. Bf4 {[%clk 0:00:14.7]} 36... d3 {[%clk 0:00:15]} 37. Re1 {[%clk
0:00:15.1]} 37... Qf5 {[%clk 0:00:14.4]} 38. Ree7 {[%clk 0:00:14.1]} 38... Ra5
{[%clk 0:00:13.7]} 39. Rc1 {[%clk 0:00:13.2]} 39... Raa8 {[%clk 0:00:12.3]} 40.
Re3 {[%clk 0:00:11.4]} 40... Rad8 {[%clk 0:00:11]} 41. Re7 {[%clk 0:00:10.7]}
41... g5 {[%clk 0:00:11]} 42. Be3 {[%clk 0:00:10.3]} 42... h6 {[%clk 0:00:11.5]}
43. Rec7 {[%clk 0:00:09.9]} 43... Bf6 {[%clk 0:00:11.6]} 44. R7c5 {[%clk
0:00:10.5]} 44... Qg6 {[%clk 0:00:11.3]} 45. Kg2 {[%clk 0:00:10.9]} 45... Kg7
{[%clk 0:00:11.7]} 46. Rb1 {[%clk 0:00:11.2]} 46... Rfe8 {[%clk 0:00:12.1]} 47.
Qf3 {[%clk 0:00:10.9]} 47... Qe4 {[%clk 0:00:12.2]} 48. Qxe4 {[%clk 0:00:10.7]}
48... Rxe4 {[%clk 0:00:13.1]} 49. Rd1 {[%clk 0:00:11]} 49... Bd4 {[%clk
0:00:11.3]} 50. Rc4 {[%clk 0:00:08.9]} 50... f5 {[%clk 0:00:09.7]} 51. Bxd4+
{[%clk 0:00:04.6]} 51... Rexd4 {[%clk 0:00:08.9]} 52. Rc3 {[%clk 0:00:05.5]}
52... Kg6 {[%clk 0:00:08.2]} 53. Kf3 {[%clk 0:00:06]} 53... d2 {[%clk
0:00:08.4]} 54. Ke2 {[%clk 0:00:06.2]} 54... Kh5 {[%clk 0:00:09]} 55. Re3 {[%clk
0:00:05.1]} 55... Kg4 {[%clk 0:00:09]} 56. f3+ {[%clk 0:00:05.6]} 56... Kh3
{[%clk 0:00:08.6]} 57. Re6 {[%clk 0:00:05.5]} 57... h5 {[%clk 0:00:08.1]} 58. g4
{[%clk 0:00:05.3]} 58... h4 {[%clk 0:00:08.2]} 59. gxf5 {[%clk 0:00:05.5]} 59...
Rf4 {[%clk 0:00:08]} 60. Rh6 {[%clk 0:00:06.4]} 60... Rxf5 {[%clk 0:00:07.4]}
61. Rxd2 {[%clk 0:00:07.3]} 61... Re5+ {[%clk 0:00:07.2]} 62. Kd1 {[%clk
0:00:08]} 62... Rxd2+ {[%clk 0:00:07.4]} 63. Kxd2 {[%clk 0:00:08.9]} 63... Rf5
{[%clk 0:00:07.9]} 64. Ke2 {[%clk 0:00:08.4]} 64... Ra5 {[%clk 0:00:08.8]} 65.
Rh5 {[%clk 0:00:07.7]} 65... Kxh2 {[%clk 0:00:08.6]} 66. Ke3 {[%clk 0:00:08.6]}
66... Kg3 {[%clk 0:00:08.3]} 67. Ke4 {[%clk 0:00:07.8]} 67... h3 {[%clk
0:00:06.7]} 68. Ke3 {[%clk 0:00:05.1]} 68... h2 {[%clk 0:00:06.5]} 69. Ke2
{[%clk 0:00:05.8]} 69... Kg2 {[%clk 0:00:06.8]} 70. f4 {[%clk 0:00:05.6]} 70...
h1=Q {[%clk 0:00:06.8]} 71. Rxh1 {[%clk 0:00:04.7]} 71... Kxh1 {[%clk
0:00:07.7]} 72. f5 {[%clk 0:00:04.9]} 72... Rxf5 {[%clk 0:00:07.7]} 0-1